bitfinex-derivatives/quotes_SOLF0:USTF0_20250419
["timestamp","ask_amount","ask_price","bid_price","bid_amount"]
[1745098388832,4.55612779,138.79,138.75,8.9411454]
[1745098389022,4.55612779,138.78,138.75,8.9411454]
[1745098389230,34.2611454,138.8,138.75,8.9411454]
[1745098389430,4.55585415,138.79,138.75,8.9411454]
[1745098389729,34.2611454,138.8,138.75,8.9411454]
[1745098389925,4.5555043,138.79,138.75,8.9411454]
[1745098390121,34.2611454,138.8,138.75,8.9411454]
[1745098390327,4.55554793,138.79,138.75,8.9411454]
[1745098390525,34.2611454,138.8,138.75,8.9411454]
[1745098390730,4.55505992,138.79,138.75,8.9411454]
[1745098390930,34.2611454,138.8,138.75,8.9411454]
[1745098391131,4.55505992,138.79,138.75,8.9411454]
[1745098391330,34.2611454,138.8,138.75,8.9411454]
[1745098391530,4.55488768,138.79,138.75,8.9411454]
[1745098391723,34.2611454,138.8,138.75,8.9411454]
[1745098392032,4.55469222,138.79,138.75,8.9411454]
[1745098392227,34.2611454,138.8,138.75,8.9411454]
[1745098392431,4.5549089,138.79,138.75,8.9411454]
[1745098392632,34.2611454,138.8,138.75,8.9411454]
[1745098392933,4.55473599,138.79,138.75,8.9411454]
[1745098393132,34.2611454,138.8,138.75,8.9411454]
[1745098393334,4.55457059,138.79,138.75,8.9411454]
[1745098393538,34.2611454,138.8,138.75,8.9411454]
[1745098393734,4.55430581,138.79,138.75,8.9411454]
[1745098394034,34.2611454,138.8,138.75,8.9411454]
[1745098394334,4.55430037,138.79,138.75,8.9411454]
[1745098394535,34.2611454,138.8,138.75,8.9411454]
[1745098394739,4.55406201,138.79,138.75,8.9411454]
[1745098394934,34.2611454,138.8,138.75,8.9411454]
[1745098395233,4.55403187,138.79,138.75,8.9411454]
[1745098395434,34.2611454,138.8,138.75,8.9411454]
[1745098395733,4.55320028,138.79,138.75,8.9411454]
[1745098395933,34.2611454,138.8,138.75,8.9411454]
[1745098396132,4.55295964,138.79,138.75,8.9411454]
[1745098396332,34.2611454,138.8,138.75,8.9411454]
[1745098396633,4.55266028,138.79,138.75,8.9411454]
[1745098396833,34.2611454,138.8,138.75,8.9411454]
[1745098397034,4.55250783,138.79,138.75,8.9411454]
[1745098397330,34.2611454,138.8,138.75,8.9411454]
[1745098397633,4.55250562,138.79,138.75,8.9411454]
[1745098397833,34.2611454,138.8,138.75,8.9411454]
[1745098398034,4.55246839,138.79,138.75,8.9411454]
[1745098398231,34.2611454,138.8,138.75,8.9411454]
[1745098398435,4.55250744,138.79,138.75,8.9411454]
[1745098398634,34.2611454,138.8,138.75,8.9411454]
[1745098398835,4.55241086,138.79,138.75,8.9411454]
[1745098399136,34.2611454,138.8,138.75,8.9411454]
[1745098399336,4.55238531,138.79,138.75,8.9411454]
[1745098399526,34.2611454,138.8,138.75,8.9411454]
[1745098399726,4.55232756,138.79,138.75,8.9411454]
[1745098399931,34.2611454,138.8,138.75,8.9411454]
[1745098400136,4.55227849,138.79,138.75,8.9411454]
[1745098400335,34.2611454,138.8,138.75,8.9411454]
[1745098400533,4.55225807,138.79,138.75,8.9411454]
[1745098400733,34.2611454,138.8,138.75,8.9411454]
[1745098400933,4.55228522,138.79,138.75,8.9411454]
[1745098401136,34.2611454,138.8,138.75,8.9411454]
[1745098401334,4.55228848,138.79,138.75,8.9411454]
[1745098401537,34.2611454,138.8,138.75,8.9411454]
[1745098401736,4.55211876,138.79,138.75,8.9411454]
[1745098401936,34.2611454,138.8,138.75,8.9411454]
[1745098402138,4.55261115,138.79,138.75,8.9411454]
[1745098402337,34.2611454,138.8,138.75,8.9411454]
[1745098402636,4.55233192,138.79,138.75,8.9411454]
[1745098402932,34.2611454,138.8,138.75,8.9411454]
[1745098403132,4.5523639,138.79,138.75,8.9411454]
[1745098403332,34.2611454,138.8,138.75,8.9411454]
[1745098403533,4.55245964,138.79,138.75,8.9411454]
[1745098403836,34.2611454,138.8,138.75,8.9411454]
[1745098404037,4.55275452,138.79,138.75,8.9411454]
[1745098404338,34.2611454,138.8,138.75,8.9411454]
[1745098404537,4.55277763,138.79,138.75,8.9411454]
[1745098404737,34.2611454,138.8,138.75,8.9411454]
[1745098405036,4.55316799,138.79,138.75,8.9411454]
[1745098405236,34.2611454,138.8,138.75,8.9411454]
[1745098405438,4.55332593,138.79,138.75,8.9411454]
[1745098405735,34.2611454,138.8,138.75,8.9411454]
[1745098405935,4.55347354,138.79,138.75,8.9411454]
[1745098406136,34.2611454,138.8,138.75,8.9411454]
[1745098406339,4.55345841,138.79,138.75,8.9411454]
[1745098406539,34.2611454,138.8,138.75,8.9411454]
[1745098406738,4.55378326,138.79,138.75,8.9411454]
[1745098406939,34.2611454,138.8,138.75,8.9411454]
[1745098407140,4.55379001,138.79,138.75,8.9411454]
[1745098407339,34.2611454,138.8,138.75,8.9411454]
[1745098407541,4.55415741,138.79,138.75,8.9411454]
[1745098407741,34.2611454,138.8,138.75,8.9411454]
[1745098407936,4.55411509,138.79,138.75,8.9411454]
[1745098408138,34.2611454,138.8,138.75,8.9411454]
[1745098408337,4.55411509,138.79,138.75,8.9411454]
[1745098408537,34.2611454,138.8,138.75,8.9411454]
[1745098408742,4.55460328,138.79,138.75,8.9411454]
[1745098409039,34.2611454,138.8,138.75,8.9411454]
[1745098409241,4.55460328,138.79,138.75,8.9411454]
[1745098409437,4.55460328,138.78,138.75,8.9411454]
[1745098409635,34.2611454,138.8,138.75,8.9411454]
[1745098409832,4.55497706,138.79,138.75,8.9411454]
[1745098410033,4.55497706,138.78,138.75,8.9411454]
[1745098410234,34.2611454,138.8,138.75,8.9411454]
[1745098410434,4.55535649,138.79,138.75,8.9411454]
[1745098410641,4.55535649,138.78,138.75,8.9411454]
[1745098410842,34.2611454,138.8,138.75,8.9411454]
[1745098411142,4.55556209,138.79,138.75,8.9411454]
[1745098411342,4.55556209,138.78,138.75,8.9411454]
[1745098411541,34.2611454,138.8,138.74,8.9411454]
[1745098411741,4.5561801,138.79,138.73,34.2611454]
[1745098411942,34.2611454,138.8,138.73,34.2611454]
[1745098412241,4.55612377,138.79,138.73,34.2611454]
[1745098412443,41.4672454,138.8,138.73,34.2611454]
[1745098412642,4.55667861,138.79,138.73,34.2611454]
[1745098412840,41.4672454,138.8,138.73,34.2611454]
[1745098413044,4.55667861,138.79,138.73,34.2611454]
[1745098413342,41.4672454,138.8,138.73,34.2611454]
[1745098413545,4.55725878,138.79,138.73,34.2611454]
[1745098413754,4.55725878,138.78,138.73,34.2611454]
[1745098414047,41.4672454,138.8,138.73,34.2611454]
[1745098414242,4.55747748,138.79,138.73,34.2611454]
[1745098414542,4.55747748,138.78,138.73,34.2611454]
[1745098414735,4.55816578,138.77,138.73,34.2611454]
[1745098414933,41.4672454,138.8,138.73,34.2611454]
[1745098415137,4.5582916,138.79,138.73,34.2611454]
[1745098415342,4.5582916,138.78,138.73,34.2611454]
[1745098415543,4.5582916,138.77,138.73,34.2611454]
[1745098415742,41.4672454,138.8,138.73,34.2611454]
[1745098416038,4.55936259,138.79,138.73,34.2611454]
[1745098416343,4.55936259,138.78,138.73,34.2611454]
[1745098416543,4.55936259,138.77,138.73,34.2611454]
[1745098416742,41.4672454,138.8,138.73,34.2611454]
[1745098416943,4.56052695,138.79,138.73,34.2611454]
[1745098417142,4.56052695,138.78,138.73,34.2611454]
[1745098417347,4.56052695,138.77,138.73,34.2611454]
[1745098417545,41.4672454,138.8,138.73,34.2611454]
[1745098417745,8.9411454,138.78,138.67,25.4185422]
[1745098417945,8.9411454,138.76,138.7,8.9411454]
[1745098418144,4.56186733,138.75,138.7,8.9411454]
[1745098418342,4.56186733,138.74,138.7,8.9411454]
[1745098418541,25.32,138.77,138.7,8.9411454]
[1745098418744,25.32,138.77,138.7,34.2611454]
[1745098418745,4.56143362,138.76,138.7,34.2611454]
[1745098418944,4.56143362,138.75,138.7,34.2611454]
[1745098419244,4.56143362,138.74,138.7,34.2611454]
[1745098419545,25.32,138.77,138.7,34.2611454]
[1745098419745,4.56150773,138.76,138.7,34.2611454]
[1745098419946,4.56150773,138.75,138.7,34.2611454]
[1745098420146,4.56150773,138.74,138.7,34.2611454]
[1745098420447,25.32,138.77,138.7,34.2611454]
[1745098420646,13.50301966,138.76,138.7,34.2611454]
[1745098420848,4.56187426,138.75,138.7,34.2611454]
[1745098421047,4.56187426,138.74,138.7,34.2611454]
[1745098421248,8.9411454,138.76,138.7,34.2611454]
[1745098421452,4.56186464,138.75,138.7,34.2611454]
[1745098421648,4.56186464,138.74,138.7,34.2611454]
[1745098421947,8.9411454,138.76,138.7,34.2611454]
[1745098422141,4.5606982,138.75,138.7,34.2611454]
[1745098422339,4.5606982,138.74,138.7,34.2611454]
[1745098422544,8.9411454,138.76,138.7,34.2611454]
[1745098422746,4.5594526,138.75,138.7,34.2611454]
[1745098422947,4.5594526,138.74,138.7,34.2611454]
[1745098423249,8.9411454,138.76,138.7,34.2611454]
[1745098423549,4.55936497,138.75,138.7,34.2611454]
[1745098423848,4.55936497,138.74,138.7,34.2611454]
[1745098424049,8.9411454,138.76,138.7,34.2611454]
[1745098424449,4.55840928,138.75,138.7,34.2611454]
[1745098424647,4.55840928,138.74,138.7,34.2611454]
[1745098424847,8.9411454,138.76,138.7,34.2611454]
[1745098425250,4.55765789,138.75,138.7,34.2611454]
[1745098425451,4.55765789,138.74,138.7,34.2611454]
[1745098425652,8.9411454,138.76,138.7,34.2611454]
[1745098425849,4.5571086,138.75,138.7,34.2611454]
[1745098426049,4.5571086,138.74,138.7,34.2611454]
[1745098426249,8.9411454,138.76,138.7,34.2611454]
[1745098426450,4.55703387,138.75,138.7,34.2611454]
[1745098426651,4.55703387,138.74,138.7,34.2611454]
[1745098426851,8.9411454,138.79,138.72,8.9411454]
[1745098427152,4.55668335,138.78,138.73,25.32]
[1745098427354,4.55668335,138.77,138.73,25.32]
[1745098427555,4.55668335,138.76,138.73,25.32]
[1745098427754,8.9411454,138.79,138.73,25.32]
[1745098427954,4.55699025,138.78,138.73,25.32]
[1745098428155,4.55699025,138.77,138.73,25.32]
[1745098428456,8.9411454,138.79,138.73,25.32]
[1745098428658,4.55726648,138.78,138.73,25.32]
[1745098428955,4.55726648,138.77,138.73,25.32]
[1745098429157,8.9411454,138.79,138.73,25.32]
[1745098429353,4.55726648,138.78,138.73,25.32]
[1745098429558,4.55726648,138.77,138.73,25.32]
[1745098429754,8.9411454,138.79,138.73,25.32]
[1745098429953,4.55728688,138.78,138.73,25.32]
[1745098430153,4.55728688,138.77,138.73,25.32]
[1745098430455,25.32,138.8,138.73,25.32]
[1745098430657,4.55732834,138.79,138.73,25.32]
[1745098430957,4.55732834,138.78,138.74,8.9411454]
[1745098431153,4.55732834,138.77,138.74,8.9411454]
[1745098431350,25.32,138.8,138.74,8.9411454]
[1745098431554,4.55727916,138.79,138.74,8.9411454]
[1745098431756,4.55727916,138.78,138.74,8.9411454]
[1745098432055,4.55727916,138.77,138.74,8.9411454]
[1745098432257,25.32,138.8,138.74,8.9411454]
[1745098432458,4.55744303,138.79,138.74,8.9411454]
[1745098432759,25.32,138.8,138.74,8.9411454]
[1745098432760,4.55744303,138.78,138.74,8.9411454]
[1745098433059,4.55756264,138.77,138.74,8.9411454]
[1745098433258,25.32,138.8,138.74,8.9411454]
[1745098433460,4.55752028,138.79,138.74,8.9411454]
[1745098433660,4.55752028,138.78,138.74,8.9411454]
[1745098433853,4.55752028,138.77,138.74,8.9411454]
[1745098434058,25.32,138.8,138.74,8.9411454]
[1745098434259,4.55753825,138.79,138.74,8.9411454]
[1745098434460,4.55753825,138.78,138.74,8.9411454]
[1745098434657,4.55753825,138.77,138.74,8.9411454]
[1745098434856,25.32,138.8,138.74,8.9411454]
[1745098435058,4.55768386,138.79,138.74,8.9411454]
[1745098435261,4.55768386,138.78,138.74,8.9411454]
[1745098435460,4.55768386,138.77,138.74,8.9411454]
[1745098435661,25.32,138.8,138.74,8.9411454]
[1745098435857,13.49899912,138.79,138.73,25.32]
[1745098436062,4.55785372,138.78,138.73,25.32]
[1745098436262,4.55785372,138.77,138.73,25.32]
[1745098436463,8.9411454,138.79,138.73,25.32]
[1745098436663,4.55785855,138.78,138.73,25.32]
[1745098436863,4.55785855,138.77,138.73,25.32]
[1745098437164,8.9411454,138.79,138.73,25.32]
[1745098437364,4.55785854,138.78,138.73,25.32]
[1745098437564,4.55785854,138.77,138.73,25.32]
[1745098437765,8.9411454,138.79,138.73,25.32]
[1745098437965,4.55800277,138.78,138.73,25.32]
[1745098438165,4.55800277,138.77,138.73,25.32]
[1745098438369,8.9411454,138.79,138.73,25.32]
[1745098438567,4.55794199,138.78,138.73,25.32]
[1745098438767,4.55794199,138.77,138.73,25.32]
[1745098438970,8.9411454,138.79,138.73,25.32]
[1745098439170,4.55836144,138.78,138.73,25.32]
[1745098439362,4.55836144,138.77,138.73,25.32]
[1745098439562,8.9411454,138.79,138.73,25.32]
[1745098439766,4.55843087,138.78,138.73,25.32]
[1745098440061,4.55843087,138.77,138.73,25.32]
[1745098440266,8.9411454,138.79,138.73,25.32]
[1745098440467,4.55841058,138.78,138.73,25.32]
[1745098440767,4.55841058,138.77,138.73,25.32]
[1745098440962,8.9411454,138.79,138.73,25.32]
[1745098441167,4.55835933,138.78,138.73,25.32]
[1745098441370,4.55835933,138.77,138.73,25.32]
[1745098441571,8.9411454,138.79,138.73,25.32]
[1745098441873,4.55833265,138.78,138.73,25.32]
[1745098442172,4.55833265,138.77,138.73,25.32]
[1745098442373,8.9411454,138.79,138.73,25.32]
[1745098442572,4.55860958,138.78,138.73,25.32]
[1745098442772,4.55860958,138.77,138.73,25.32]
[1745098442973,8.9411454,138.79,138.73,25.32]
[1745098443172,4.55856721,138.78,138.73,25.32]
[1745098443473,4.55856721,138.77,138.73,25.32]
[1745098443673,8.9411454,138.79,138.73,25.32]
[1745098443973,4.55875057,138.78,138.73,25.32]
[1745098444170,4.55875057,138.77,138.73,25.32]
[1745098444374,5.8039,138.82,138.74,8.9411454]
[1745098444574,4.55917531,138.81,138.74,8.9411454]
[1745098444872,4.55917531,138.8,138.74,8.9411454]
[1745098445073,4.55917531,138.79,138.74,8.9411454]
[1745098445269,4.55917531,138.78,138.74,8.9411454]
[1745098445469,4.55917531,138.77,138.74,8.9411454]
[1745098445673,14.7450454,138.82,138.74,8.9411454]
[1745098445973,4.55927017,138.81,138.74,8.9411454]
[1745098446173,4.55927017,138.8,138.74,8.9411454]
[1745098446374,4.55927017,138.79,138.74,8.9411454]
[1745098446570,4.55927017,138.78,138.74,8.9411454]
[1745098446771,4.55927017,138.77,138.74,8.9411454]
[1745098446972,14.7450454,138.82,138.74,8.9411454]
[1745098447274,4.55937171,138.81,138.74,8.9411454]
[1745098447474,4.55937171,138.8,138.74,8.9411454]
[1745098447667,4.55937171,138.79,138.74,8.9411454]
[1745098447974,12.8891454,138.82,138.76,8.9411454]
[1745098448175,4.55951395,138.81,138.76,34.2411454]
[1745098448476,4.55951395,138.8,138.76,34.2411454]
[1745098448671,4.55951395,138.79,138.76,34.2411454]
[1745098448971,4.55958899,138.78,138.76,34.2411454]
[1745098449171,12.8891454,138.82,138.76,34.2411454]
[1745098449371,4.55955853,138.81,138.76,34.2411454]
[1745098449569,4.55955853,138.8,138.76,34.2411454]
[1745098449773,4.55955853,138.79,138.76,34.2411454]
[1745098450072,8.9411454,138.82,138.76,34.2411454]
[1745098450272,4.55959742,138.81,138.76,34.2411454]
[1745098450475,4.55959742,138.8,138.76,34.2411454]
[1745098450676,4.55959742,138.79,138.76,34.2411454]
[1745098450878,4.55956843,138.78,138.76,34.2411454]
[1745098451175,8.9411454,138.82,138.76,34.2411454]
[1745098451377,4.55942566,138.81,138.76,34.2411454]
[1745098451672,4.55942566,138.8,138.76,34.2411454]
[1745098451970,4.55942566,138.79,138.76,34.2411454]
[1745098452178,8.9411454,138.82,138.76,34.2411454]
[1745098452383,4.55928658,138.81,138.76,34.2411454]
[1745098452675,4.55928658,138.8,138.76,34.2411454]
[1745098452870,4.55928658,138.79,138.76,34.2411454]
[1745098453068,8.9411454,138.82,138.76,34.2411454]
[1745098453267,4.55930422,138.81,138.76,34.2411454]
[1745098453478,4.55930422,138.8,138.76,34.2411454]
[1745098453675,4.55930422,138.79,138.76,34.2411454]
[1745098453974,25.3,138.83,138.76,34.2411454]
[1745098454173,13.49926216,138.82,138.76,34.2411454]
[1745098454477,4.55811676,138.81,138.76,34.2411454]
[1745098454677,4.55811676,138.8,138.76,34.2411454]
[1745098454877,4.55811676,138.79,138.76,34.2411454]
[1745098455076,8.9411454,138.82,138.76,34.2411454]
[1745098455277,4.55784561,138.81,138.76,34.2411454]
[1745098455576,4.55784561,138.8,138.76,34.2411454]
[1745098455776,4.55784561,138.79,138.76,34.2411454]
[1745098455977,8.9411454,138.82,138.76,34.2411454]
[1745098456275,4.55760798,138.81,138.76,34.2411454]
[1745098456478,4.55760798,138.8,138.76,34.2411454]
[1745098456672,4.55760798,138.79,138.76,34.2411454]
[1745098456870,8.9411454,138.82,138.76,34.2411454]
[1745098457069,4.55756852,138.81,138.76,34.2411454]
[1745098457276,4.55756852,138.8,138.76,34.2411454]
[1745098457477,4.55756852,138.79,138.76,34.2411454]
[1745098457677,8.9411454,138.82,138.76,34.2411454]
[1745098457878,4.55732842,138.81,138.76,34.2411454]
[1745098458083,4.55732842,138.8,138.76,34.2411454]
[1745098458380,4.55732842,138.79,138.76,34.2411454]
[1745098458577,8.9411454,138.82,138.76,34.2411454]
[1745098458877,4.55713202,138.81,138.76,34.2411454]
[1745098459179,4.55713202,138.8,138.76,34.2411454]
[1745098459377,4.55713202,138.79,138.76,34.2411454]
[1745098459577,8.9411454,138.82,138.76,34.2411454]
[1745098459778,4.55672871,138.81,138.76,34.2411454]
[1745098460075,4.55672871,138.8,138.76,34.2411454]
[1745098460273,4.55672871,138.79,138.76,34.2411454]
[1745098460473,8.9411454,138.82,138.76,34.2411454]
[1745098460669,4.55640626,138.81,138.76,34.2411454]
[1745098460879,4.55640626,138.8,138.76,34.2411454]
[1745098461079,4.55640626,138.79,138.76,34.2411454]
[1745098461378,8.9411454,138.82,138.76,34.2411454]
[1745098461581,4.55654128,138.81,138.76,34.2411454]
[1745098461880,4.55654128,138.8,138.76,34.2411454]
[1745098462081,4.55654128,138.79,138.76,34.2411454]
[1745098462282,8.9411454,138.82,138.76,34.2411454]
[1745098462477,4.55650405,138.81,138.76,34.2411454]
[1745098462680,4.55650405,138.8,138.76,34.2411454]
[1745098462880,8.9411454,138.82,138.76,34.2411454]
[1745098463075,4.55639547,138.81,138.76,34.2411454]
[1745098463278,4.55639547,138.8,138.76,34.2411454]
[1745098463479,8.9411454,138.82,138.76,34.2411454]
[1745098463676,4.55641115,138.81,138.76,34.2411454]
[1745098463881,4.55641115,138.8,138.76,34.2411454]
[1745098464179,8.9411454,138.82,138.76,34.2411454]
[1745098464483,4.55629078,138.81,138.76,34.2411454]
[1745098464682,4.55629078,138.8,138.76,34.2411454]
[1745098464883,8.9411454,138.82,138.76,34.2411454]
[1745098465082,4.55645191,138.81,138.76,34.2411454]
[1745098465384,4.55645191,138.8,138.76,34.2411454]
[1745098465585,8.9411454,138.82,138.76,34.2411454]
[1745098465785,4.55667416,138.81,138.76,34.2411454]
[1745098465985,4.55667416,138.8,138.76,34.2411454]
[1745098466185,8.9411454,138.82,138.76,34.2411454]
[1745098466386,4.55655613,138.81,138.76,34.2411454]
[1745098466585,4.55655613,138.8,138.76,34.2411454]
[1745098466787,8.9411454,138.82,138.76,34.2411454]
[1745098466987,4.55704547,138.81,138.76,34.2411454]
[1745098467287,4.55704547,138.8,138.76,34.2411454]
[1745098467488,8.9411454,138.82,138.76,34.2411454]
[1745098467689,4.55370833,138.81,138.76,34.2411454]
[1745098467985,4.55370833,138.8,138.76,34.2411454]
[1745098468179,8.9411454,138.82,138.76,34.2411454]
[1745098468382,4.55385477,138.81,138.76,34.2411454]
[1745098468583,4.55385477,138.8,138.76,34.2411454]
[1745098468882,4.55385477,138.79,138.76,34.2411454]
[1745098469083,8.9411454,138.82,138.76,34.2411454]
[1745098469280,4.5542495,138.81,138.76,34.2411454]
[1745098469488,4.5542495,138.8,138.76,34.2411454]
[1745098469690,4.55488206,138.79,138.76,34.2411454]
[1745098469891,8.9411454,138.83,138.76,34.2411454]
[1745098470083,4.55486707,138.82,138.78,8.9411454]
[1745098470284,4.55486707,138.81,138.78,8.9411454]
[1745098470491,4.55581221,138.8,138.78,8.9411454]
[1745098470685,8.9411454,138.84,138.78,8.9411454]
[1745098470982,4.55583263,138.83,138.78,8.9411454]
[1745098471183,4.55583263,138.82,138.78,8.9411454]
[1745098471384,4.55583263,138.81,138.78,8.9411454]
[1745098471587,8.9411454,138.84,138.78,8.9411454]
[1745098471787,4.55634894,138.83,138.78,8.9411454]
[1745098471988,4.55634894,138.82,138.78,8.9411454]
[1745098472187,4.55634894,138.81,138.78,8.9411454]
[1745098472388,8.9411454,138.84,138.78,8.9411454]
[1745098472592,4.55638235,138.83,138.78,8.9411454]
[1745098472790,4.55638235,138.82,138.78,8.9411454]
[1745098472995,4.55638235,138.81,138.78,8.9411454]
[1745098473187,8.9411454,138.84,138.78,8.9411454]
[1745098473386,4.55590762,138.83,138.78,8.9411454]
[1745098473588,8.9411454,138.84,138.78,8.9411454]
[1745098474193,4.5558611,138.83,138.78,8.9411454]
[1745098474394,4.55597164,138.83,138.78,8.9411454]
[1745098474590,4.55597164,138.82,138.78,8.9411454]
[1745098474785,4.55604974,138.81,138.78,8.9411454]
[1745098474992,4.55604731,138.81,138.78,8.9411454]
[1745098475191,8.9411454,138.84,138.78,8.9411454]
[1745098475893,4.55552355,138.83,138.78,8.9411454]
[1745098476091,4.55552355,138.82,138.78,8.9411454]
[1745098476292,4.55552355,138.81,138.78,8.9411454]
[1745098476492,8.9411454,138.84,138.78,8.9411454]
[1745098476692,4.55502796,138.83,138.78,8.9411454]
[1745098476895,4.55502796,138.82,138.78,8.9411454]
[1745098477094,4.55502796,138.81,138.78,8.9411454]
[1745098477394,8.9411454,138.84,138.79,25.3]
[1745098477594,4.55453604,138.83,138.79,25.3]
[1745098477789,4.55453604,138.82,138.79,25.3]
[1745098477995,4.55453604,138.81,138.79,25.3]
[1745098478188,8.9411454,138.84,138.79,25.3]
[1745098478390,4.55413162,138.83,138.79,25.3]
[1745098478591,4.55413162,138.82,138.79,25.3]
[1745098478792,25.3,138.85,138.8,8.9411454]
[1745098479092,4.55438057,138.84,138.8,8.9411454]
[1745098479386,4.55438057,138.83,138.8,8.9411454]
[1745098479585,25.3,138.85,138.8,8.9411454]
[1745098479586,4.55438057,138.82,138.8,8.9411454]
[1745098479797,25.3,138.85,138.8,8.9411454]
[1745098479996,4.55401728,138.84,138.8,8.9411454]
[1745098480196,4.55401728,138.83,138.8,8.9411454]
[1745098480399,4.55401728,138.82,138.8,8.9411454]
[1745098480595,25.3,138.85,138.8,8.9411454]
[1745098480795,4.55385726,138.84,138.8,8.9411454]
[1745098480996,4.55385726,138.83,138.8,8.9411454]
[1745098481294,4.55385726,138.82,138.8,8.9411454]
[1745098481495,25.3,138.85,138.8,8.9411454]
[1745098481698,4.55356025,138.84,138.8,8.9411454]
[1745098481893,4.55356025,138.83,138.8,8.9411454]
[1745098482093,4.55356025,138.82,138.8,8.9411454]
[1745098482290,25.3,138.85,138.8,8.9411454]
[1745098482487,4.55313183,138.84,138.8,8.9411454]
[1745098482686,4.55313183,138.83,138.8,8.9411454]
[1745098482893,4.55313183,138.82,138.8,8.9411454]
[1745098483189,25.3,138.85,138.8,8.9411454]
[1745098483388,4.55294888,138.84,138.8,8.9411454]
[1745098483588,4.55297431,138.83,138.8,8.9411454]
[1745098483898,4.55297431,138.82,138.8,8.9411454]
[1745098484197,25.3,138.85,138.8,8.9411454]
[1745098484397,4.55262157,138.84,138.8,8.9411454]
[1745098484596,4.55262157,138.83,138.8,8.9411454]
[1745098484797,4.55262157,138.82,138.8,8.9411454]
[1745098484999,25.3,138.85,138.8,8.9411454]
[1745098485197,4.55257501,138.84,138.8,8.9411454]
[1745098485399,4.55257501,138.83,138.8,8.9411454]
[1745098485695,4.55257501,138.82,138.8,8.9411454]
[1745098485897,25.3,138.85,138.8,8.9411454]
[1745098486097,4.55263005,138.84,138.8,8.9411454]
[1745098486297,4.55263005,138.83,138.8,8.9411454]
[1745098486495,25.3,138.85,138.8,8.9411454]
[1745098486696,4.55208965,138.84,138.8,8.9411454]
[1745098486999,4.55208965,138.83,138.8,8.9411454]
[1745098487301,25.3,138.85,138.8,8.9411454]
[1745098487499,4.55257684,138.84,138.8,8.9411454]
[1745098487798,4.55257684,138.83,138.8,8.9411454]
[1745098487999,8.9411454,138.86,138.8,8.9411454]
[1745098488199,4.55284204,138.85,138.8,8.9411454]
[1745098488497,4.55284204,138.84,138.8,8.9411454]
[1745098488696,8.9411454,138.86,138.8,8.9411454]
[1745098488899,4.5523349,138.85,138.8,8.9411454]
[1745098489197,4.5523349,138.84,138.8,8.9411454]
[1745098489499,8.9411454,138.86,138.8,8.9411454]
[1745098489697,4.55222481,138.85,138.8,8.9411454]
[1745098489897,4.55222481,138.84,138.8,8.9411454]
[1745098490197,8.9411454,138.86,138.8,8.9411454]
[1745098490395,4.55180264,138.85,138.8,8.9411454]
[1745098490697,4.55180264,138.84,138.8,8.9411454]
[1745098490897,8.9411454,138.86,138.8,8.9411454]
[1745098491097,4.55185849,138.85,138.8,8.9411454]
[1745098491303,4.55185849,138.84,138.8,8.9411454]
[1745098491597,8.9411454,138.86,138.8,8.9411454]
[1745098491797,4.55152813,138.85,138.8,8.9411454]
[1745098491991,4.55152813,138.84,138.8,8.9411454]
[1745098492192,8.9411454,138.86,138.8,8.9411454]
[1745098492394,4.55137695,138.85,138.8,8.9411454]
[1745098492597,4.55137695,138.84,138.8,8.9411454]
[1745098492799,8.9411454,138.86,138.8,8.9411454]
[1745098492998,4.55137695,138.85,138.8,8.9411454]
[1745098493201,4.55137695,138.84,138.8,8.9411454]
[1745098493400,8.9411454,138.86,138.8,8.9411454]
[1745098493602,4.55132426,138.85,138.8,8.9411454]
[1745098493901,4.55132426,138.84,138.8,8.9411454]
[1745098494102,8.9411454,138.86,138.8,8.9411454]
[1745098494303,4.55118121,138.85,138.8,8.9411454]
[1745098494506,4.55118121,138.84,138.8,8.9411454]
[1745098494803,8.9411454,138.86,138.8,8.9411454]
[1745098495004,4.55117206,138.85,138.8,8.9411454]
[1745098495204,4.55117206,138.84,138.8,8.9411454]
[1745098495405,8.9411454,138.86,138.8,8.9411454]
[1745098495600,4.55091507,138.85,138.8,8.9411454]
[1745098495798,4.55091507,138.84,138.8,8.9411454]
[1745098496001,8.9411454,138.86,138.8,8.9411454]
[1745098496206,4.55099336,138.85,138.8,8.9411454]
[1745098496407,4.55099336,138.84,138.8,8.9411454]
[1745098496608,8.9411454,138.86,138.8,8.9411454]
[1745098496904,4.55086708,138.85,138.8,8.9411454]
[1745098497098,4.55086708,138.84,138.8,8.9411454]
[1745098497302,8.9411454,138.86,138.8,8.9411454]
[1745098497502,4.55071405,138.85,138.8,8.9411454]
[1745098497707,4.55071405,138.84,138.8,8.9411454]
[1745098497906,8.9411454,138.86,138.8,8.9411454]
[1745098498205,4.55075634,138.85,138.8,8.9411454]
[1745098498408,4.55075634,138.84,138.8,8.9411454]
[1745098498608,8.9411454,138.86,138.8,8.9411454]
[1745098498905,4.5507003,138.85,138.8,8.9411454]
[1745098499106,4.5507003,138.84,138.8,8.9411454]